fUST/lending_fUST_20240824
["ID","MTS","AMOUNT","RATE_DAILY","PERIOD"]
[335696947,1724440239503,-151.0,0.00017409,2]
[335696948,1724440239512,-464.776027,0.00017409,2]
[335696949,1724440239521,-464.776027,0.00017409,2]
[335696950,1724440239531,-1024.742812,0.00017409,2]
[335696951,1724440239541,-1024.742812,0.00017409,2]
[335696952,1724440239551,-151.0,0.00017409,2]
[335696953,1724440239561,-1152.820454,0.00017409,2]
[335696954,1724440239570,-1409.291666,0.00017409,2]
[335696956,1724440239580,-1152.820454,0.00017409,2]
[335696959,1724440239590,-1409.291666,0.00017409,2]
[335696962,1724440239599,-3000.0,0.0001741,2]
[335696965,1724440239609,-3000.0,0.0001742,2]
[335696968,1724440239619,-3000.0,0.0001743,2]
[335696969,1724440239628,-3000.0,0.0001744,2]
[335696971,1724440239638,-3000.0,0.0001745,2]
[335696973,1724440239648,-3000.0,0.0001746,2]
[335696975,1724440239658,-3000.0,0.0001747,2]
[335696976,1724440239667,-150.0,0.00017473,2]
[335696978,1724440239677,-158.161737,0.00017477,2]
[335696979,1724440239686,-3000.0,0.0001748,2]
[335696981,1724440239695,-3000.0,0.0001749,2]
[335696982,1724440239705,-151.0,0.0001749,2]
[335696983,1724440239716,-151.0,0.0001749,2]
[335696984,1724440239727,-151.0,0.0001749,2]
[335696985,1724440239742,-373.060267,0.0001749,2]
[335696986,1724440239752,-373.060267,0.0001749,2]
[335696987,1724440239762,-151.0,0.0001749,2]
[335696988,1724440239772,-3001.566623,0.0001749,2]
[335696989,1724440239781,-3001.566623,0.0001749,2]
[335696990,1724440239791,-151.0,0.0001749,2]
[335696992,1724440239802,-151.0,0.0001749,2]
[335696995,1724440239823,-236.373386,0.0001749,2]
[335696997,1724440239835,-236.373386,0.0001749,2]
[335696999,1724440239845,-2238.480401,0.0001749,2]
[335697001,1724440239855,-2238.480401,0.0001749,2]
[335697002,1724440239864,-3934.233433,0.0001749,2]
[335697004,1724440239875,-3934.233433,0.0001749,2]
[335697006,1724440239886,-281.514088,0.0001749,2]
[335697008,1724440239895,-281.514088,0.0001749,2]
[335697009,1724440239906,-3000.0,0.000175,2]
[335697010,1724440239916,-725.936533,0.000175,2]
[335697011,1724440239926,-725.936533,0.000175,2]
[335697012,1724440239936,-223.237362,0.000175,2]
[335697013,1724440239947,-223.237362,0.000175,2]
[335697014,1724440239957,-974.628705,0.000175,2]
[335697015,1724440239968,-974.628705,0.000175,2]
[335697016,1724440239979,-151.0,0.000175,2]
[335697017,1724440239992,-843.220947,0.000175,2]
[335697018,1724440240003,-151.0,0.000175,2]
[335697019,1724440240013,-843.220947,0.000175,2]
[335697020,1724440240025,-1228.482249,0.000175,2]
[335697021,1724440240035,-1228.482249,0.000175,2]
[335697022,1724440240045,-239.975019,0.000175,2]
[335697023,1724440240055,-822.568595,0.000175,2]
[335697024,1724440240065,-822.568595,0.000175,2]
[335697025,1724440240075,-239.975019,0.000175,2]
[335697026,1724440240085,-376.7,0.00017507,2]
[335697027,1724440240095,-3000.0,0.0001751,2]
[335697028,1724440240106,-409.212231,0.00017515,2]
[335697030,1724440240116,-409.212231,0.00017515,2]
[335697032,1724440240126,-409.212231,0.00017515,2]
[335697033,1724440240137,-409.212231,0.00017515,2]
[335697035,1724440240147,-409.212231,0.00017515,2]
[335697037,1724440240157,-409.212231,0.00017515,2]
[335697039,1724440240168,-409.212231,0.00017515,2]
[335697041,1724440240178,-409.212231,0.00017515,2]
[335697043,1724440240189,-409.212231,0.00017515,2]
[335697045,1724440240200,-600.0,0.00017517,2]
[335697047,1724440240211,-3000.0,0.0001752,2]
[335697048,1724440240220,-3000.0,0.0001753,2]
[335697049,1724440240231,-3000.0,0.0001754,2]
[335697050,1724440240245,-177.775679,0.00017548,2]
[335697051,1724440240254,-275.923381,0.00017548,2]
[335697052,1724440240264,-349.213024,0.00017548,2]
[335697053,1724440240274,-384.089925,0.00017548,2]
[335697054,1724440240284,-209.099971,0.00017548,2]
[335697055,1724440240293,-212.378123,0.00017548,2]
[335697056,1724440240304,-165.357133,0.00017548,2]
[335697057,1724440240314,-196.36056,0.00017548,2]
[335697058,1724440240324,-171.437344,0.00017548,2]
[335697059,1724440240334,-260.360077,0.00017548,2]
[335697060,1724440240343,-267.676883,0.00017548,2]
[335697061,1724440240353,-218.732793,0.00017548,2]
[335697062,1724440240363,-174.55866,0.00017548,2]
[335697063,1724440240373,-212.589921,0.00017548,2]
[335697064,1724440240383,-209.531265,0.00017548,2]
[335697065,1724440240394,-3000.0,0.0001755,2]
[335697066,1724440240404,-3000.0,0.0001756,2]
[335697067,1724440240414,-3000.0,0.0001757,2]
[335697068,1724440240424,-3000.0,0.0001758,2]
[335697069,1724440240438,-490.01114741,0.00017588,2]
[335697070,1724440240450,-3708.886175,0.0001759,2]
[335697071,1724440240460,-150.112234,0.000176,2]
[335697072,1724440240471,-150.112233,0.000176,2]
[335697073,1724440240481,-173.505287,0.000176,2]
[335697074,1724440240493,-150.112234,0.000176,2]
[335697075,1724440240502,-150.112233,0.000176,2]
[335697076,1724440240513,-376.7,0.00017631,2]
[335697077,1724440240524,-1000.0,0.0001769,2]
[335697078,1724440240535,-600.0,0.000177,2]
[335697079,1724440240547,-14499.999998,0.000177,2]
[335697080,1724440240557,-150.112235,0.000177,2]
[335697081,1724440240569,-1000.0,0.00017719,2]
[335697082,1724440240581,-1000.0,0.00017737,2]
[335697083,1724440240591,-151.0,0.00017746,2]
[335697084,1724440240602,-210.348049,0.00017746,2]
[335697085,1724440240614,-210.348049,0.00017746,2]
[335697086,1724440240624,-2262.808412,0.00017746,2]
[335697087,1724440240635,-2262.808412,0.00017746,2]
[335697088,1724440240645,-284.801006,0.00017746,2]
[335697089,1724440240656,-284.801006,0.00017746,2]
[335697090,1724440240668,-151.0,0.00017746,2]
[335697091,1724440240678,-151.0,0.00017746,2]
[335697092,1724440240688,-151.0,0.00017746,2]
[335697093,1724440240698,-163.357634,0.00017746,2]
[335697094,1724440240708,-163.357634,0.00017746,2]
[335697095,1724440240721,-2398.194578,0.00017746,2]
[335697096,1724440240731,-2398.194578,0.00017746,2]
[335697097,1724440240741,-476.080975,0.00017746,2]
[335697098,1724440240752,-476.080975,0.00017746,2]
[335697099,1724440240763,-151.0,0.00017746,2]
[335697100,1724440240772,-1416.0,0.00017754,2]
[335697101,1724440240783,-34208.0,0.00017754,2]
[335697102,1724440240792,-376.7,0.00017754,2]
[335697103,1724440240803,-151.0,0.00017759,2]
[335697104,1724440240813,-479.762357,0.00017759,2]
[335697105,1724440240823,-1850.9578,0.00017759,2]
[335697106,1724440240833,-479.762357,0.00017759,2]
[335697107,1724440240844,-1850.9578,0.00017759,2]
[335697108,1724440240854,-151.0,0.00017759,2]
[335697109,1724440240864,-4809.141527,0.00017759,2]
[335697110,1724440240874,-214.485779,0.00017759,2]
[335697111,1724440240887,-203.840349,0.00017759,2]
[335697112,1724440240897,-203.840349,0.00017759,2]
[335697113,1724440240907,-158.161737,0.00017759,2]
[335697114,1724440240918,-177.775679,0.00017759,2]
[335697115,1724440240930,-275.923381,0.00017759,2]
[335697116,1724440240941,-349.213024,0.00017759,2]
[335697117,1724440240951,-384.089925,0.00017759,2]
[335697118,1724440240963,-209.099971,0.00017759,2]
[335697119,1724440240973,-212.378123,0.00017759,2]
[335697120,1724440240985,-165.357133,0.00017759,2]
[335697121,1724440240997,-160.399233,0.00017759,2]
[335697122,1724440241009,-196.36056,0.00017759,2]
[335697123,1724440241020,-171.437344,0.00017759,2]
[335697124,1724440241032,-195.625297,0.00017759,2]
[335697125,1724440241043,-260.360077,0.00017759,2]
[335697126,1724440241053,-267.676883,0.00017759,2]
[335697127,1724440241064,-218.732793,0.00017759,2]
[335697128,1724440241074,-160.399234,0.00017759,2]
[335697129,1724440241084,-174.55866,0.00017759,2]
[335697130,1724440241094,-198.664613,0.00017759,2]
[335697131,1724440241104,-212.589921,0.00017759,2]
[335697132,1724440241114,-209.531265,0.00017759,2]
[335697133,1724440241124,-255.2975683,0.00017792,2]
[335697134,1724440241135,-150.112233,0.000178,2]
[335697135,1724440241146,-150.112233,0.000178,2]
[335697136,1724440241156,-300.0,0.000178,7]
[335697137,1724440241166,-1000.0,0.00017804,2]
[335697138,1724440241176,-1000.0,0.00017815,2]
[335697139,1724440241186,-261.8833007,0.00017848,2]
[335697140,1724440241196,-1000.0,0.00017854,2]
[335697141,1724440241207,-376.7,0.00017877,2]
[335697142,1724440241217,-600.0,0.00017882,2]
[335697143,1724440241227,-1000.0,0.00017896,2]
[335697144,1724440241238,-10347.1553605,0.00017898,2]
[335697145,1724440241248,-151.0,0.00017898,2]
[335697146,1724440241257,-151.0,0.00017898,2]
[335697147,1724440241267,-464.776027,0.00017898,2]
[335697148,1724440241276,-464.776027,0.00017898,2]
[335697149,1724440241286,-1024.742812,0.00017898,2]
[335697150,1724440241296,-1024.742812,0.00017898,2]
[335697151,1724440241306,-151.0,0.00017898,2]
[335697152,1724440241316,-1152.820454,0.00017898,2]
[335697153,1724440241326,-1409.291666,0.00017898,2]
[335697154,1724440241336,-1152.820454,0.00017898,2]
[335697155,1724440241346,-1409.291666,0.00017898,2]
[335697156,1724440241356,-150.112233,0.000179,2]
[335697157,1724440241366,-150.112233,0.000179,2]
[335697158,1724440241376,-150.112233,0.000179,2]
[335697159,1724440241386,-1000.0,0.00017902,2]
[335697160,1724440241396,-1000.0,0.00017916,2]
[335697161,1724440241406,-155.0,0.0001792,2]
[335697162,1724440241416,-500.0,0.00017921,2]
[335697163,1724440241426,-168.226594,0.0001793,2]
[335697164,1724440241437,-168.226594,0.0001793,2]
[335697165,1724440241448,-274.49414,0.0001793,2]
[335697166,1724440241458,-274.49414,0.0001793,2]
[335697167,1724440241469,-150.0,0.0001793,2]
[335697168,1724440241478,-239.615,0.0001793,2]
[335697169,1724440241488,-150.0,0.0001793,2]
[335697170,1724440241498,-213.126,0.0001793,2]
[335697171,1724440241508,-158.795,0.0001793,2]
[335697172,1724440241519,-150.0,0.0001793,2]
[335697173,1724440241530,-150.0,0.0001793,2]
[335697174,1724440241542,-522.0,0.0001793,2]
[335697175,1724440241552,-163.95692627,0.00017931,2]
[335697176,1724440241564,-1000.0,0.00017935,2]
[335697177,1724440241574,-1000.0,0.00017937,2]
[335697178,1724440241584,-303.21721364,0.00017968,2]
[335697179,1724440241593,-500.0,0.00017973,2]
[335697180,1724440241602,-500.0,0.00017973,2]
[335697181,1724440241612,-500.0,0.00017973,2]
[335697182,1724440241621,-500.0,0.00017973,2]
[335697183,1724440241631,-500.0,0.00017973,2]
[335697184,1724440241640,-1000.0,0.00017978,2]
[335697185,1724440241650,-6366.38,0.00017988,2]
[335697186,1724440241660,-151.0,0.00017988,2]
[335697187,1724440241670,-151.0,0.00017988,2]
[335697188,1724440241680,-151.0,0.00017988,2]
[335697189,1724440241691,-441.977882,0.00017988,2]
[335697190,1724440241702,-441.977882,0.00017988,2]
[335697191,1724440241712,-151.0,0.00017988,2]
[335697192,1724440241728,-151.0,0.00017988,2]
[335697193,1724440241742,-339.463145,0.00017988,2]
[335697194,1724440241753,-339.463145,0.00017988,2]
[335697195,1724440241774,-296.8741,0.00017988,2]
[335697196,1724440241787,-296.8741,0.00017988,2]
[335697197,1724440241800,-151.0,0.00017988,2]
[335697198,1724440241811,-151.0,0.00017988,2]
[335697199,1724440241823,-251.187621,0.00017988,2]
[335697200,1724440241834,-251.187621,0.00017988,2]
[335697201,1724440241845,-221.279929,0.00017988,2]
[335697202,1724440241857,-151.0,0.00017988,2]
[335697203,1724440241868,-151.0,0.00017988,2]
[335697204,1724440241879,-151.0,0.00017988,2]
[335697205,1724440241889,-373.060267,0.00017988,2]
[335697206,1724440241900,-373.060267,0.00017988,2]
[335697207,1724440241910,-151.0,0.00017988,2]
[335697208,1724440241920,-3001.566623,0.00017988,2]
[335697209,1724440241931,-3001.566623,0.00017988,2]
[335697210,1724440241941,-725.936533,0.00017988,2]
[335697211,1724440241953,-725.936533,0.00017988,2]
[335697212,1724440241963,-223.237362,0.00017988,2]
[335697213,1724440241974,-223.237362,0.00017988,2]
[335697214,1724440241985,-974.628705,0.00017988,2]
[335697215,1724440241995,-974.628705,0.00017988,2]
[335697216,1724440242006,-151.0,0.00017988,2]
[335697217,1724440242016,-151.0,0.00017988,2]
[335697218,1724440242027,-236.373386,0.00017988,2]
[335697219,1724440242039,-236.373386,0.00017988,2]
[335697220,1724440242049,-151.0,0.00017988,2]
[335697221,1724440242059,-843.220947,0.00017988,2]
[335697222,1724440242070,-151.0,0.00017988,2]
[335697223,1724440242081,-843.220947,0.00017988,2]
[335697224,1724440242092,-2238.480401,0.00017988,2]
[335697225,1724440242104,-2238.480401,0.00017988,2]
[335697226,1724440242114,-3934.233433,0.00017988,2]
[335697227,1724440242125,-151.0,0.00017988,2]
[335697228,1724440242137,-3934.233433,0.00017988,2]
[335697229,1724440242148,-281.514088,0.00017988,2]
[335697230,1724440242160,-1228.482249,0.00017988,2]
[335697231,1724440242170,-281.514088,0.00017988,2]
[335697232,1724440242179,-1228.482249,0.00017988,2]
[335697233,1724440242189,-239.975019,0.00017988,2]
[335697234,1724440242198,-822.568595,0.00017988,2]
[335697235,1724440242208,-822.568595,0.00017988,2]
[335697236,1724440242220,-239.975019,0.00017988,2]
[335697237,1724440242230,-341546.62064386,0.00017999,2]
[335697238,1724440242241,-168.226594,0.00017999,2]
[335697239,1724440242251,-168.226594,0.00017999,2]
[335697241,1724440242261,-274.49414,0.00017999,2]
[335697242,1724440242270,-274.49414,0.00017999,2]
[335697243,1724440242280,-151.0,0.00017999,2]
[335697244,1724440242290,-151.0,0.00017999,2]
[335697245,1724440242301,-151.0,0.00017999,2]
[335697246,1724440242311,-441.977882,0.00017999,2]
[335697247,1724440242321,-441.977882,0.00017999,2]
[335697248,1724440242331,-151.0,0.00017999,2]
[335697259,1724440242572,-151.0,0.00017999,2]
[335697260,1724440242585,-339.463145,0.00017999,2]
[335697261,1724440242595,-339.463145,0.00017999,2]
[335697262,1724440242604,-296.8741,0.00017999,2]
[335697263,1724440242614,-296.8741,0.00017999,2]
[335697264,1724440242624,-151.0,0.00017999,2]
[335697265,1724440242634,-151.0,0.00017999,2]
[335697266,1724440242644,-251.187621,0.00017999,2]
[335697267,1724440242653,-251.187621,0.00017999,2]
[335697268,1724440242662,-151.0,0.00017999,2]
[335697269,1724440242673,-479.762357,0.00017999,2]
[335697272,1724440242683,-1850.9578,0.00017999,2]
[335697273,1724440242695,-479.762357,0.00017999,2]
[335697274,1724440242708,-1850.9578,0.00017999,2]
[335697275,1724440242721,-152.50283,0.00017999,2]
[335697277,1724440242733,-210.348049,0.00017999,2]
[335697279,1724440242744,-210.348049,0.00017999,2]
[335697281,1724440242753,-2262.808412,0.00017999,2]
[335697283,1724440242764,-2262.808412,0.00017999,2]
[335697285,1724440242774,-284.801006,0.00017999,2]
[335697286,1724440242784,-284.801006,0.00017999,2]
[335697287,1724440242795,-151.0,0.00017999,2]
[335697288,1724440242804,-151.0,0.00017999,2]
[335697289,1724440242814,-151.0,0.00017999,2]
[335697290,1724440242823,-151.0,0.00017999,2]
[335697291,1724440242833,-163.357634,0.00017999,2]
[335697292,1724440242843,-163.357634,0.00017999,2]
[335697293,1724440242853,-2398.194578,0.00017999,2]
[335697294,1724440242865,-2398.194578,0.00017999,2]
[335697295,1724440242875,-476.080975,0.00017999,2]
[335697296,1724440242885,-4809.141527,0.00017999,2]
[335697297,1724440242896,-476.080975,0.00017999,2]
[335697298,1724440242905,-151.0,0.00017999,2]
[335697299,1724440242915,-151.0,0.00017999,2]
[335697300,1724440242925,-151.0,0.00017999,2]
[335697301,1724440242935,-151.0,0.00017999,2]
[335697302,1724440242945,-373.060267,0.00017999,2]
[335697303,1724440242956,-373.060267,0.00017999,2]
[335697304,1724440242966,-3001.566623,0.00017999,2]
[335697306,1724440242977,-3001.566623,0.00017999,2]
[335697307,1724440242989,-725.936533,0.00017999,2]
[335697309,1724440242999,-725.936533,0.00017999,2]
[335697311,1724440243009,-223.237362,0.00017999,2]
[335697313,1724440243020,-223.237362,0.00017999,2]
[335697315,1724440243030,-974.628705,0.00017999,2]
[335697316,1724440243044,-974.628705,0.00017999,2]
[335697317,1724440243055,-151.0,0.00017999,2]
[335697318,1724440243066,-151.0,0.00017999,2]
[335697319,1724440243076,-236.373386,0.00017999,2]
[335697320,1724440243087,-236.373386,0.00017999,2]
[335697321,1724440243098,-151.0,0.00017999,2]
[335697322,1724440243108,-843.220947,0.00017999,2]
[335697323,1724440243117,-151.0,0.00017999,2]
[335697324,1724440243127,-843.220947,0.00017999,2]
[335697325,1724440243138,-2238.480401,0.00017999,2]
[335697326,1724440243149,-2238.480401,0.00017999,2]
[335697327,1724440243160,-3934.233433,0.00017999,2]
[335697328,1724440243171,-151.0,0.00017999,2]
[335697329,1724440243181,-3934.233433,0.00017999,2]
[335697330,1724440243191,-281.514088,0.00017999,2]
[335697331,1724440243202,-1228.482249,0.00017999,2]
[335697332,1724440243213,-281.514088,0.00017999,2]
[335697333,1724440243224,-1228.482249,0.00017999,2]
[335697334,1724440243235,-239.975019,0.00017999,2]
[335697335,1724440243246,-822.568595,0.00017999,2]
[335697336,1724440243256,-822.568595,0.00017999,2]
[335697337,1724440243266,-239.975019,0.00017999,2]
[335697338,1724440243276,-151.0,0.00017999,2]
[335697339,1724440243290,-151.0,0.00017999,2]
[335697340,1724440243300,-464.776027,0.00017999,2]
[335697341,1724440243312,-1024.742812,0.00017999,2]
[335697342,1724440243323,-464.776027,0.00017999,2]
[335697343,1724440243332,-1024.742812,0.00017999,2]
[335697344,1724440243342,-285.498925,0.00017999,2]
[335697345,1724440243352,-1152.820454,0.00017999,2]
[335697346,1724440243362,-1409.291666,0.00017999,2]
[335697347,1724440243372,-1152.820454,0.00017999,2]
[335697348,1724440243383,-1409.291666,0.00017999,2]
[335697349,1724440243395,-542.47782028,0.00018,2]
[335697350,1724440243408,-542.47782025,0.00018,2]
[335697351,1724440243419,-542.47782025,0.00018,2]
[335697352,1724440243430,-542.47782025,0.00018,2]
[335697353,1724440243441,-376.7,0.00018,2]
[335697354,1724440243451,-603.0,0.00018,2]
[335697355,1724440243463,-250.0,0.00018021,2]
[335697356,1724440243474,-1195.08,0.00018065,2]
[335697357,1724440243485,-150.112233,0.000181,2]
[335697358,1724440243495,-953.84767115,0.00018105,2]
[335697359,1724440243505,-11992.1186561,0.00018124,2]
[335697360,1724440243515,-361.39038516,0.00018124,2]
[335697361,1724440243526,-376.7,0.00018124,2]
[335697362,1724440243538,-4282.0,0.0001818,2]
[335697363,1724440243547,-1926.8416,0.000182,2]
[335697364,1724440243557,-1926.8416,0.000182,2]
[335697365,1724440243567,-2000.0,0.0001824,2]
[335697366,1724440243577,-376.7,0.00018247,2]
[335697367,1724440243590,-2000.0,0.00018249,2]
[335697368,1724440243599,-2000.0,0.00018257,2]
[335697369,1724440243609,-500.0,0.00018263,2]
[335697370,1724440243619,-500.0,0.00018263,2]
[335697371,1724440243629,-2000.0,0.00018266,2]
[335697372,1724440243640,-2000.0,0.00018275,2]
[335697373,1724440243649,-2000.0,0.00018275,2]
[335697374,1724440243659,-409.212231,0.00018337,2]
[335697375,1724440243668,-500.0,0.00018338,2]
[335697376,1724440243678,-5052.0,0.000184,2]
[335697377,1724440243688,-150.112233,0.000184,2]
[335697378,1724440243698,-466.25055737,0.00018468,2]
[335697379,1724440243708,-1000.0,0.00018521,2]
[335697380,1724440243720,-500.0,0.00018537,2]
[335697381,1724440243730,-500.0,0.00018537,2]
[335697382,1724440243741,-350.0,0.00018568,2]
[335697383,1724440243750,-500.0,0.00018606,2]
[335697384,1724440243760,-500.0,0.00018612,2]
[335697385,1724440243771,-150.112233,0.000187,2]
[335697386,1724440243780,-500.0,0.00018811,2]
[335697387,1724440243789,-500.0,0.00018811,2]
[335697388,1724440243801,-250.47162474,0.00018873,2]
[335697389,1724440243811,-500.0,0.00018886,2]
[335697390,1724440243821,-150.112233,0.000189,2]
[335697391,1724440243830,-40000.0,0.000189,2]
[335697392,1724440243840,-339.463145,0.000189,2]
[335697393,1724440243850,-339.463145,0.000189,2]
[335697394,1724440243861,-296.8741,0.000189,2]
[335697395,1724440243871,-296.8741,0.000189,2]
[335697396,1724440243880,-151.0,0.000189,2]
[335697397,1724440243891,-151.0,0.000189,2]
[335697398,1724440243901,-251.187621,0.000189,2]
[335697399,1724440243911,-251.187621,0.000189,2]
[335697400,1724440243922,-151.0,0.000189,2]
[335697401,1724440243931,-479.762357,0.000189,2]
[335697402,1724440243944,-1850.9578,0.000189,2]
[335697403,1724440243955,-479.762357,0.000189,2]
[335697404,1724440243966,-1850.9578,0.000189,2]
[335697405,1724440243976,-210.348049,0.000189,2]
[335697406,1724440243986,-210.348049,0.000189,2]
[335697407,1724440243995,-2262.808412,0.000189,2]
[335697408,1724440244006,-2262.808412,0.000189,2]
[335697409,1724440244016,-284.801006,0.000189,2]
[335697410,1724440244028,-284.801006,0.000189,2]
[335697411,1724440244039,-151.0,0.000189,2]
[335697412,1724440244050,-151.0,0.000189,2]
[335697413,1724440244062,-151.0,0.000189,2]
[335697414,1724440244073,-151.0,0.000189,2]
[335697415,1724440244084,-163.357634,0.000189,2]
[335697416,1724440244095,-163.357634,0.000189,2]
[335697417,1724440244106,-2398.194578,0.000189,2]
[335697418,1724440244116,-2398.194578,0.000189,2]
[335697419,1724440244127,-476.080975,0.000189,2]
[335697420,1724440244137,-4809.141527,0.000189,2]
[335697421,1724440244146,-476.080975,0.000189,2]
[335697422,1724440244156,-151.0,0.000189,2]
[335697423,1724440244167,-282.601544,0.000189,2]
[335697424,1724440244177,-151.0,0.000189,2]
[335697425,1724440244186,-373.060267,0.000189,2]
[335697426,1724440244196,-373.060267,0.000189,2]
[335697427,1724440244206,-3001.566623,0.000189,2]
[335697428,1724440244215,-3001.566623,0.000189,2]
[335697429,1724440244225,-725.936533,0.000189,2]
[335697430,1724440244235,-725.936533,0.000189,2]
[335697431,1724440244246,-223.237362,0.000189,2]
[335697432,1724440244255,-223.237362,0.000189,2]
[335697433,1724440244265,-974.628705,0.000189,2]
[335697434,1724440244275,-974.628705,0.000189,2]
[335697435,1724440244284,-151.0,0.000189,2]
[335697436,1724440244294,-151.0,0.000189,2]
[335697437,1724440244303,-236.373386,0.000189,2]
[335697438,1724440244314,-236.373386,0.000189,2]
[335697439,1724440244324,-151.0,0.000189,2]
[335697440,1724440244333,-843.220947,0.000189,2]
[335697441,1724440244343,-151.0,0.000189,2]
[335697442,1724440244352,-843.220947,0.000189,2]
[335697443,1724440244362,-2238.480401,0.000189,2]
[335697444,1724440244381,-2238.480401,0.000189,2]
[335697445,1724440244392,-3934.233433,0.000189,2]
[335697446,1724440244403,-151.0,0.000189,2]
[335697447,1724440244413,-3934.233433,0.000189,2]
[335697448,1724440244423,-281.514088,0.000189,2]
[335697449,1724440244433,-1228.482249,0.000189,2]
[335697450,1724440244443,-281.514088,0.000189,2]
[335697451,1724440244454,-1228.482249,0.000189,2]
[335697452,1724440244464,-239.975019,0.000189,2]
[335697453,1724440244474,-822.568595,0.000189,2]
[335697454,1724440244484,-822.568595,0.000189,2]
[335697455,1724440244495,-239.975019,0.000189,2]
[335697456,1724440244504,-151.0,0.000189,2]
[335697457,1724440244515,-151.0,0.000189,2]
[335697458,1724440244525,-464.776027,0.000189,2]
[335697459,1724440244536,-464.776027,0.000189,2]
[335697460,1724440244546,-1024.742812,0.000189,2]
[335697461,1724440244556,-1024.742812,0.000189,2]
[335697462,1724440244566,-1152.820454,0.000189,2]
[335697463,1724440244577,-1409.291666,0.000189,2]
[335697464,1724440244587,-1152.820454,0.000189,2]
[335697465,1724440244598,-1409.291666,0.000189,2]
[335697466,1724440244608,-355.56595316,0.00018903,2]
[335697467,1724440244618,-1111.52616931,0.00018903,2]
[335697468,1724440244628,-151.0,0.00018904,2]
[335697469,1724440244639,-151.0,0.00018904,2]
[335697470,1724440244650,-5000.0,0.00018904,2]
[335697471,1724440244660,-4655.77092839,0.00018904,2]
[335697472,1724440244670,-823.0,0.00018959,2]
[335697473,1724440244681,-150.0,0.00018962,2]
[335697474,1724440244690,-1000.0,0.00019,2]
[335697475,1724440244700,-1000.0,0.00019,2]
[335697476,1724440244711,-1000.0,0.00019,19]
[335697477,1724440244725,-12046.45519769,0.00019,2]
[335697478,1724440244735,-1000.0,0.00019,2]
[335697479,1724440244746,-155.0,0.0001905,2]
[335697480,1724440244756,-500.0,0.00019085,2]
[335697481,1724440244766,-500.0,0.00019085,2]
[335697482,1724440244776,-150.112233,0.000191,2]
[335697483,1724440244786,-450.0,0.00019116,2]
[335697484,1724440244799,-500.0,0.0001916,2]
[335697485,1724440244809,-151.0,0.00019178,2]
[335697486,1724440244818,-151.0,0.00019178,2]
[335697487,1724440244828,-151.0,0.00019178,2]
[335697488,1724440244838,-159.393211,0.00019178,2]
[335697489,1724440244849,-165.766596,0.00019178,2]
[335697490,1724440244859,-2278.360615,0.00019178,2]
[335697491,1724440244869,-2278.360615,0.00019178,2]
[335697492,1724440244879,-2278.360615,0.00019178,2]
[335697493,1724440244889,-2278.360615,0.00019178,2]
[335697494,1724440244898,-2278.360615,0.00019178,2]
[335697495,1724440244908,-2278.360615,0.00019178,2]
[335697496,1724440244919,-443.0809773,0.00019178,4]
[335697497,1724440244929,-251.0,0.00019178,2]
[335697498,1724440244939,-160.3873882,0.00019178,2]
[335697499,1724440244950,-1679.68,0.000192,2]
[335697500,1724440244961,-2668.57,0.000192,2]
[335697501,1724440244971,-2690.27,0.000192,2]